lending/lending_fUSD_20240410
["ID","MTS","AMOUNT","RATE_DAILY","PERIOD"]
[322064631,1712737841353,-904.14,0.00020481,2]
[322064632,1712737841363,-556.62,0.00020481,2]
[322064633,1712737841372,-500.0,0.00020481,2]
[322064634,1712737841381,-635.87079954,0.00020481,2]
[322064635,1712737841390,-788.77321768,0.00020481,2]
[322064642,1712737842319,-581.89156214,0.00020204,2]
[322064643,1712737842328,-109.96843786,0.00020206,2]
[322064644,1712737842357,-390.03156214,0.00020206,2]
[322064645,1712737842369,-252.24187189,0.0002048,2]
[322064646,1712737842378,-85.58678232,0.00020481,2]
[322064647,1712737842387,-500.0,0.00020481,2]
[322064648,1712737842398,-533.21,0.00020481,2]
[322064649,1712737842409,-644.82,0.00020481,2]
[322064650,1712737842418,-500.0,0.00020481,2]
[322064651,1712737842427,-500.0,0.00020481,2]
[322064652,1712737842436,-500.0,0.00020481,2]
[322064653,1712737842445,-500.0,0.00020481,2]
[322064654,1712737842455,-500.0,0.00020481,2]
[322064655,1712737842463,-759.34,0.00020481,2]
[322064656,1712737842473,-500.0,0.00020481,2]
[322064657,1712737842481,-500.0,0.00020481,2]
[322064658,1712737842490,-522.75,0.00020481,2]
[322064659,1712737842499,-500.0,0.00020481,2]
[322064660,1712737842509,-500.0,0.00020481,2]
[322064661,1712737842517,-500.0,0.00020481,2]
[322064662,1712737842527,-527.06936522,0.00020481,2]
[322064663,1712737842536,-150.0,0.000205,2]
[322064664,1712737842545,-303.89801741,0.00020517,2]
[322064665,1712737842556,-50.10198259,0.00020517,2]
[322064666,1712737842566,-351.101,0.00020517,2]
[322064667,1712737842574,-3353.918,0.00020517,2]
[322064668,1712737842583,-526.0,0.00020547,2]
[322064669,1712737842592,-802.0,0.00020547,2]
[322064670,1712737842601,-608.61598278,0.0002056,2]
[322064671,1712737842610,-949.47113825,0.00020591,2]
[322064672,1712737842619,-500.0,0.00020662,2]
[322064673,1712737842628,-608.61598278,0.00020673,2]
[322064674,1712737842637,-500.0,0.00020752,2]
[322064675,1712737842647,-500.0,0.00020752,2]
[322064676,1712737842657,-500.0,0.00020752,2]
[322064677,1712737842666,-500.0,0.00020752,2]
[322064678,1712737842675,-120.26980435,0.00020752,2]
[322064679,1712737842936,-10358.97391487,0.00020104,2]
[322064680,1712737842946,-379.73019565,0.00020752,2]
[322064682,1712737842955,-500.0,0.00020752,2]
[322064683,1712737842963,-500.0,0.00020752,2]
[322064684,1712737842973,-500.0,0.00020752,2]
[322064685,1712737842982,-500.0,0.00020752,2]
[322064686,1712737842991,-500.0,0.00020752,2]
[322064687,1712737843000,-500.0,0.00020752,2]
[322064688,1712737843009,-1081.93,0.00020752,2]
[322064689,1712737843019,-500.0,0.00020752,2]
[322064690,1712737843028,-500.0,0.00020752,2]
[322064691,1712737843037,-1622.05,0.00020752,2]
[322064692,1712737843046,-500.0,0.00020752,2]
[322064693,1712737843055,-500.0,0.00020752,2]
[322064694,1712737843064,-500.0,0.00020752,2]
[322064695,1712737843073,-500.0,0.00020752,2]
[322064696,1712737843082,-500.0,0.00020752,2]
[322064697,1712737843091,-500.0,0.00020752,2]
[322064698,1712737843100,-563.43,0.00020752,2]
[322064699,1712737843110,-714.47,0.00020752,2]
[322064700,1712737843119,-604.08,0.00020752,2]
[322064702,1712737843128,-500.0,0.00020752,2]
[322064704,1712737843138,-500.0,0.00020752,2]
[322064705,1712737843147,-973.27,0.00020752,2]
[322064707,1712737843158,-1458.94,0.00020752,2]
[322064708,1712737843167,-984.15,0.00020752,2]
[322064709,1712737843176,-500.0,0.00020752,2]
[322064710,1712737843185,-584.36,0.00020752,2]
[322064711,1712737843195,-2427.27,0.00020752,2]
[322064712,1712737843204,-2423.66,0.00020752,2]
[322064713,1712737843213,-461.31992995,0.00020752,2]
[322064714,1712737843223,-653.74,0.00020752,2]
[322064715,1712737843233,-631.09,0.00020752,2]
[322064716,1712737843242,-2753.09,0.00020752,2]
[322064717,1712737843252,-500.0,0.00020752,2]
[322064718,1712737843261,-1299.45,0.00020752,2]
[322064719,1712737843270,-1329.35,0.00020752,2]
[322064720,1712737843280,-1106.53,0.00020752,2]
[322064721,1712737843289,-527.98,0.00020752,2]
[322064722,1712737843299,-708.03,0.00020752,2]
[322064723,1712737843308,-802.27,0.00020752,2]
[322064724,1712737843317,-500.0,0.00020752,2]
[322064725,1712737843326,-500.0,0.00020752,2]
[322064726,1712737843335,-606.21,0.00020752,2]
[322064727,1712737843345,-2005.0,0.00020752,2]
[322064728,1712737843354,-500.0,0.00020752,2]
[322064729,1712737843365,-500.0,0.00020752,2]
[322064730,1712737843374,-874.54,0.00020752,2]
[322064731,1712737843383,-1183.54,0.00020752,2]
[322064732,1712737843392,-700.09,0.00020752,2]
[322064733,1712737843403,-564.06,0.00020752,2]
[322064734,1712737843413,-500.0,0.00020752,2]
[322064735,1712737843422,-500.0,0.00020752,2]
[322064736,1712737843431,-500.0,0.00020752,2]
[322064737,1712737843441,-500.0,0.00020752,2]
[322064738,1712737843451,-582.61697533,0.00020752,2]
[322064739,1712737843460,-500.0,0.00020752,2]
[322064740,1712737843469,-500.0,0.00020752,2]
[322064741,1712737843478,-500.0,0.00020752,2]
[322064742,1712737843487,-500.0,0.00020752,2]
[322064743,1712737843496,-500.0,0.00020752,2]
[322064744,1712737843505,-500.0,0.00020752,2]
[322064745,1712737843515,-500.0,0.00020752,2]
[322064746,1712737843524,-500.0,0.00020753,2]
[322064747,1712737843533,-500.0,0.00020753,2]
[322064748,1712737843542,-500.0,0.00020753,2]
[322064749,1712737843551,-500.0,0.00020753,2]
[322064750,1712737843561,-500.0,0.00020753,2]
[322064751,1712737843570,-500.0,0.00020753,2]
[322064752,1712737843579,-500.0,0.00020753,2]
[322064753,1712737843588,-500.0,0.00020753,2]
[322064754,1712737843597,-500.0,0.00020753,2]
[322064755,1712737843607,-500.0,0.00020753,2]
[322064756,1712737843617,-500.0,0.00020753,2]
[322064757,1712737843626,-517.03838997,0.00020753,2]
[322064758,1712737843635,-500.0,0.00020753,2]
[322064759,1712737843644,-500.0,0.00020753,2]
[322064760,1712737843655,-500.0,0.00020753,2]
[322064761,1712737843664,-291.87213742,0.00020753,2]
[322064762,1712737843674,-500.0,0.00020753,2]
[322064763,1712737843683,-500.0,0.00020753,2]
[322064764,1712737843692,-500.0,0.00020753,2]
[322064765,1712737843701,-150.0,0.00020753,2]
[322064766,1712737843710,-594.62,0.00020753,2]
[322064767,1712737843720,-500.0,0.00020753,2]
[322064768,1712737843730,-500.0,0.00020753,2]
[322064769,1712737843739,-664.66,0.00020753,2]
[322064770,1712737843748,-500.0,0.00020753,2]
[322064771,1712737843758,-500.0,0.00020753,2]
[322064772,1712737843767,-500.0,0.00020753,2]
[322064773,1712737843776,-500.0,0.00020753,2]
[322064774,1712737843785,-346.13543818,0.00020753,2]
[322064775,1712737843794,-500.0,0.00020753,2]
[322064776,1712737843803,-500.0,0.00020753,2]
[322064777,1712737843812,-500.0,0.00020753,2]
[322064778,1712737843822,-500.0,0.00020753,2]
[322064779,1712737843831,-500.0,0.00020753,2]
[322064780,1712737843841,-500.0,0.00020753,2]
[322064781,1712737843850,-500.0,0.00020753,2]
[322064782,1712737843860,-447.82859905,0.00020753,2]
[322064783,1712737843869,-389.72527835,0.00020753,2]
[322064784,1712737843878,-500.0,0.00020753,2]
[322064785,1712737843887,-500.0,0.00020753,2]
[322064786,1712737843897,-173.2800784,0.00020753,2]
[322064787,1712737843906,-1557.33,0.00020753,2]
[322064788,1712737843916,-500.0,0.00020753,2]
[322064789,1712737843926,-500.0,0.00020753,2]
[322064790,1712737843935,-500.0,0.00020753,2]
[322064791,1712737843944,-500.0,0.00020753,2]
[322064792,1712737843953,-885.29,0.00020753,2]
[322064793,1712737843962,-500.57,0.00020753,2]
[322064794,1712737843971,-500.0,0.00020753,2]
[322064795,1712737843981,-319.69353645,0.00020753,2]
[322064796,1712737843990,-1651.58,0.00020753,2]
[322064797,1712737844000,-500.0,0.00020753,2]
[322064798,1712737844010,-500.0,0.00020753,2]
[322064799,1712737844019,-500.0,0.00020753,2]
[322064800,1712737844029,-500.0,0.00020753,2]
[322064801,1712737844038,-586.35,0.00020753,2]
[322064802,1712737844047,-5640.93,0.00020753,2]
[322064803,1712737844058,-500.0,0.00020753,2]
[322064804,1712737844067,-623.75,0.00020753,2]
[322064805,1712737844077,-500.0,0.00020753,2]
[322064806,1712737844086,-531.42,0.00020753,2]
[322064807,1712737844097,-500.0,0.00020753,2]
[322064808,1712737844106,-500.0,0.00020753,2]
[322064809,1712737844115,-500.0,0.00020753,2]
[322064810,1712737844125,-1068.3,0.00020753,2]
[322064811,1712737844134,-500.0,0.00020753,2]
[322064812,1712737844143,-500.0,0.00020753,2]
[322064813,1712737844158,-271.45879594,0.00020753,2]
[322064814,1712737844169,-500.0,0.00020753,2]
[322064815,1712737844179,-588.66,0.00020753,2]
[322064816,1712737844189,-1024.44,0.00020753,2]
[322064817,1712737844198,-500.0,0.00020753,2]
[322064818,1712737844208,-500.0,0.00020753,2]
[322064819,1712737844218,-500.0,0.00020753,2]
[322064820,1712737844227,-500.0,0.00020753,2]
[322064821,1712737844237,-500.0,0.00020753,2]
[322064822,1712737844247,-500.0,0.00020753,2]
[322064823,1712737844256,-721.59,0.00020753,2]
[322064824,1712737844266,-2941.42,0.00020753,2]
[322064825,1712737844275,-554.7,0.00020753,2]
[322064826,1712737844285,-500.0,0.00020753,2]
[322064827,1712737844294,-505.36589749,0.00020753,2]
[322064828,1712737844308,-474.79410251,0.00020753,2]
[322064829,1712737844318,-601.63,0.00020753,2]
[322064830,1712737844327,-500.0,0.00020753,2]
[322064831,1712737844337,-500.0,0.00020753,2]
[322064832,1712737844347,-500.0,0.00020753,2]
[322064833,1712737844357,-180.53834418,0.00020753,2]
[322064834,1712737844369,-500.0,0.00020753,2]
[322064835,1712737844379,-860.67,0.00020753,2]
[322064836,1712737844389,-500.0,0.00020753,2]
[322064837,1712737844401,-500.0,0.00020753,2]
[322064838,1712737844413,-500.0,0.00020753,2]
[322064839,1712737844423,-500.0,0.00020753,2]
[322064840,1712737844433,-500.0,0.00020753,2]
[322064841,1712737844443,-717.39,0.00020753,2]
[322064842,1712737844453,-812.36,0.00020753,2]
[322064843,1712737844463,-1399.76,0.00020753,2]
[322064844,1712737844472,-606.45,0.00020753,2]
[322064845,1712737844481,-500.0,0.00020754,2]
[322064846,1712737844491,-529.47307449,0.00020754,2]
[322064847,1712737844501,-500.0,0.00020754,2]
[322064848,1712737844510,-555.90268466,0.00020754,2]
[322064849,1712737844520,-513.76360399,0.00020754,2]
[322064850,1712737844530,-500.0,0.00020754,2]
[322064851,1712737844540,-500.0,0.00020754,2]
[322064852,1712737844550,-500.0,0.00020754,2]
[322064853,1712737844559,-500.0,0.00020754,2]
[322064854,1712737844569,-500.0,0.00020754,2]
[322064855,1712737844579,-500.0,0.00020754,2]
[322064856,1712737844589,-500.0,0.00020754,2]
[322064857,1712737844599,-500.0,0.00020754,2]
[322064858,1712737844608,-500.0,0.00020754,2]
[322064859,1712737844618,-500.0,0.00020754,2]
[322064860,1712737844627,-500.0,0.00020754,2]
[322064861,1712737844637,-500.0,0.00020754,2]
[322064862,1712737844646,-500.0,0.00020754,2]
[322064863,1712737844658,-500.0,0.00020754,2]
[322064864,1712737844668,-500.0,0.00020754,2]
[322064865,1712737844677,-500.0,0.00020754,2]
[322064866,1712737844687,-684.95,0.00020754,2]
[322064867,1712737844696,-500.0,0.00020754,2]
[322064868,1712737844706,-500.0,0.00020754,2]
[322064869,1712737844715,-540.22,0.00020754,2]
[322064870,1712737844725,-500.0,0.00020754,2]
[322064871,1712737844734,-500.0,0.00020754,2]
[322064872,1712737844744,-736.71,0.00020754,2]
[322064873,1712737844754,-528.49,0.00020754,2]
[322064874,1712737844764,-500.0,0.00020754,2]
[322064875,1712737844773,-693.63,0.00020754,2]
[322064876,1712737844783,-500.0,0.00020754,2]
[322064877,1712737844793,-500.0,0.00020754,2]
[322064878,1712737844802,-500.0,0.00020754,2]
[322064879,1712737844812,-1121.53,0.00020754,2]
[322064880,1712737844822,-696.53,0.00020754,2]
[322064881,1712737844832,-500.0,0.00020754,2]
[322064882,1712737844842,-500.0,0.00020754,2]
[322064883,1712737844852,-500.0,0.00020754,2]
[322064884,1712737844861,-500.0,0.00020754,2]
[322064885,1712737844871,-617.42937414,0.00020754,2]
[322064886,1712737844880,-500.0,0.00020754,2]
[322064887,1712737844890,-553.45466597,0.00020754,2]
[322064888,1712737844900,-297.79193255,0.00020754,2]
[322064889,1712737844909,-500.0,0.00020754,2]
[322064890,1712737844919,-500.0,0.00020754,2]
[322064891,1712737844929,-1078.31,0.00020754,2]
[322064892,1712737844939,-500.0,0.00020754,2]
[322064893,1712737844948,-500.0,0.00020754,2]
[322064894,1712737844958,-853.33,0.00020754,2]
[322064895,1712737844968,-500.0,0.00020754,2]
[322064896,1712737844977,-819.98,0.00020754,2]
[322064897,1712737844987,-500.0,0.00020754,2]
[322064898,1712737844997,-593.31615371,0.00020754,2]
[322064899,1712737845158,-158.94384629,0.00020754,2]
[322064900,1712737845168,-1000.98,0.00020754,2]
[322064901,1712737845178,-500.0,0.00020754,2]
[322064902,1712737845189,-899.76,0.00020754,2]
[322064903,1712737845198,-10.46338619,0.00020754,2]
[322064904,1712737845210,-906.66661381,0.00020754,2]
[322064905,1712737845219,-805.6,0.00020754,2]
[322064906,1712737845229,-1081.05,0.00020754,2]
[322064907,1712737845239,-656.88,0.00020754,2]
[322064908,1712737845248,-500.0,0.00020754,2]
[322064909,1712737845257,-500.0,0.00020754,2]
[322064910,1712737845267,-500.0,0.00020754,2]
[322064911,1712737845277,-1225.4,0.00020754,2]
[322064912,1712737845286,-500.0,0.00020754,2]
[322064913,1712737845295,-500.0,0.00020754,2]
[322064914,1712737845304,-1064.5,0.00020754,2]
[322064915,1712737845314,-500.0,0.00020754,2]
[322064916,1712737845323,-500.0,0.00020754,2]
[322064917,1712737845332,-616.66,0.00020754,2]
[322064918,1712737845341,-500.0,0.00020754,2]
[322064919,1712737845351,-500.0,0.00020754,2]
[322064920,1712737845361,-500.0,0.00020754,2]
[322064921,1712737845373,-500.0,0.00020754,2]
[322064922,1712737845383,-1014.85,0.00020754,2]
[322064923,1712737845392,-500.0,0.00020754,2]
[322064924,1712737845403,-500.0,0.00020754,2]
[322064925,1712737845413,-500.0,0.00020754,2]
[322064926,1712737845423,-500.0,0.00020754,2]
[322064927,1712737845432,-500.0,0.00020754,2]
[322064928,1712737845443,-1345.59,0.00020754,2]
[322064929,1712737845452,-1139.0,0.00020754,2]
[322064930,1712737845461,-7648.2,0.00020754,2]
[322064931,1712737845471,-609.71550507,0.00020754,2]
[322064932,1712737845480,-500.0,0.00020754,2]
[322064933,1712737845489,-1112.95,0.00020754,2]
[322064934,1712737845498,-11903.06,0.00020754,2]
[322064935,1712737845508,-500.0,0.00020754,2]
[322064936,1712737845517,-175.0,0.00020755,2]
[322064937,1712737845526,-500.0,0.00020755,2]
[322064938,1712737845535,-500.0,0.00020755,2]
[322064939,1712737845544,-502.24097518,0.00020755,2]
[322064940,1712737845553,-500.0,0.00020755,2]
[322064941,1712737845563,-500.0,0.00020755,2]
[322064942,1712737845572,-610.63,0.00020755,2]
[322064943,1712737845581,-635.97,0.00020755,2]
[322064944,1712737845591,-500.0,0.00020755,2]
[322064945,1712737845600,-678.19,0.00020755,2]
[322064946,1712737845609,-569.65,0.00020755,2]
[322064947,1712737845618,-500.0,0.00020755,2]
[322064948,1712737845629,-500.0,0.00020755,2]
[322064949,1712737845638,-812.72,0.00020755,2]
[322064950,1712737845647,-500.65009076,0.00020755,2]
[322064951,1712737845657,-1062.88,0.00020755,2]
[322064952,1712737845666,-904.14,0.00020755,2]
[322064953,1712737845676,-556.62,0.00020755,2]
[322064954,1712737845685,-500.0,0.00020755,2]
[322064955,1712737845695,-874.36,0.00020755,2]
[322064956,1712737845704,-500.0,0.00020755,2]
[322064957,1712737845713,-533.21,0.00020755,2]
[322064958,1712737845722,-644.82,0.00020755,2]
[322064959,1712737845733,-500.0,0.00020755,2]
[322064960,1712737845743,-537.90552635,0.00020755,2]
[322064961,1712737845753,-500.0,0.00020755,2]
[322064962,1712737845762,-500.0,0.00020755,2]
[322064963,1712737845772,-630.77897084,0.00020755,2]
[322064964,1712737845781,-759.34,0.00020755,2]
[322064965,1712737845791,-500.0,0.00020755,2]
[322064966,1712737845800,-500.0,0.00020755,2]
[322064967,1712737845809,-522.75,0.00020755,2]
[322064968,1712737845819,-500.0,0.00020755,2]
[322064969,1712737845829,-371.77663689,0.00020755,2]
[322064970,1712737845838,-500.0,0.00020755,2]
[322064971,1712737845847,-608.61598278,0.00020787,2]
[322064972,1712737845857,-505.37634327,0.0002079,2]
[322064973,1712737845867,-237.78365,0.00020822,2]
[322064974,1712737845877,-417.92,0.00020887,2]
[322064975,1712737845887,-150.0,0.00020887,2]
[322064976,1712737845896,-300.0,0.00020887,2]
[322064977,1712737845907,-162.27,0.00020887,2]
[322064978,1712737845917,-150.0,0.00020887,2]
[322064979,1712737845927,-150.0,0.00020887,2]
[322064980,1712737845937,-417.92,0.00020887,2]
[322064981,1712737845946,-150.0,0.00020887,2]
[322064982,1712737845956,-301.88,0.00020887,2]
[322064984,1712737845966,-162.27,0.00020887,2]
[322064985,1712737845975,-155.67,0.00020887,2]
[322064986,1712737845986,-150.0,0.00020887,2]
[322064987,1712737845995,-417.92,0.00020887,2]
[322064988,1712737846005,-150.0,0.00020887,2]
[322064989,1712737846015,-162.27,0.00020887,2]
[322064990,1712737846188,-416.96,0.00020887,2]
[322064991,1712737846199,-161.91,0.00020887,2]
[322064992,1712737846209,-1000.0,0.00020895,2]
[322064993,1712737846218,-585.6572,0.00020895,2]
[322064994,1712737846227,-210.0,0.00020898,2]
[322064995,1712737846236,-210.0,0.00020898,2]
[322064996,1712737846245,-2275.2102,0.000209,2]
[322064997,1712737846255,-658.64385554,0.000209,2]
[322064998,1712737846264,-364.84801792,0.000209,2]
[322064999,1712737846274,-608.61598278,0.000209,2]
[322065000,1712737846283,-500.0,0.00020985,2]
[322065001,1712737846292,-2552.0,0.00020986,2]
[322065002,1712737846301,-160010.0,0.00020986,2]
[322065003,1712737846310,-22090.0,0.00020986,2]
[322065004,1712737846319,-500.0,0.00020996,2]
[322065005,1712737846329,-343.89026156,0.00020997,2]
[322065006,1712737846338,-186288.10236431,0.00020997,2]
[322065007,1712737846347,-5242.01546849,0.00020998,2]
[322065008,1712737846356,-3944.09195196,0.00020998,2]
[322065009,1712737846367,-513.16357943,0.00020998,2]
[322065010,1712737846376,-500.0,0.00020998,2]
[322065011,1712737846386,-310.8781278,0.00020998,2]
[322065012,1712737846395,-2361.93347219,0.00020998,2]
[322065013,1712737846408,-1334.93967143,0.00020999,2]
[322065014,1712737846417,-500.0,0.00020999,2]
[322065015,1712737846426,-384.92702455,0.00020999,2]
[322065016,1712737846436,-500.0,0.00020999,2]
[322065017,1712737846446,-500.0,0.00020999,2]
[322065018,1712737846455,-500.0,0.00020999,2]
[322065019,1712737846464,-500.0,0.00020999,2]
[322065020,1712737846473,-290.47547048,0.00020999,2]
[322065021,1712737846482,-290.47547048,0.00020999,2]
[322065022,1712737846491,-290.47547048,0.00020999,2]
[322065023,1712737846501,-290.47547048,0.00020999,2]
[322065024,1712737846510,-290.47547048,0.00020999,2]
[322065025,1712737846519,-290.47547048,0.00020999,2]
[322065026,1712737846529,-290.47547048,0.00020999,2]
[322065027,1712737846538,-290.47547048,0.00020999,2]
[322065028,1712737846547,-290.47547048,0.00020999,2]
[322065029,1712737846556,-290.47547048,0.00020999,2]
[322065030,1712737846565,-290.47547048,0.00020999,2]
[322065031,1712737846574,-290.47547048,0.00020999,2]
[322065032,1712737846584,-290.47547048,0.00020999,2]
[322065033,1712737846593,-290.47547048,0.00020999,2]
[322065034,1712737846602,-290.47547048,0.00020999,2]
[322065035,1712737846611,-290.47547048,0.00020999,2]
[322065036,1712737846620,-290.47547048,0.00020999,2]
[322065037,1712737846629,-70310.01900365,0.00021,2]
[322065038,1712737846637,-1121488.46052515,0.00021,2]
[322065039,1712737846651,-43124.20663842,0.00021,2]
[322065040,1712737846763,-2586.47528675,0.00019508,2]
[322065041,1712737846773,-140.59305062,0.00020479,2]
[322065042,1712737846785,-221.89726766,0.00020479,2]
[322065043,1712737846795,-1022.91152976,0.00021,2]
[322065044,1712737846816,-553.592976,0.00021,2]
[322065045,1712737847114,-569.19413505,0.00019508,2]
[322065046,1712737847123,-10358.97391483,0.00020192,2]
[322065047,1712737847133,-648.63,0.00020205,2]
[322065048,1712737847143,-155.58476943,0.00020479,2]
[322065049,1712737847153,-36368.15816711,0.00021,2]
[322065050,1712737847165,-4099.54866181,0.00021,2]
[322065051,1712737847281,-9e-08,0.00021,2]
[322065052,1712737847329,-5143.26,0.00021,2]
[322065053,1712737847340,-2835.36133938,0.00021,2]
[322065055,1712737899218,2746.7909,0.00018899,2]
[322065056,1712738008403,25000.0,0.00031856,30]
[322065059,1712738260831,336.35,0.00017463,2]
[322065060,1712738360898,226.75247328,0.00017463,2]
[322065061,1712738368791,19077.17683338,0.00017463,2]
[322065062,1712738387480,227.17736308,0.00017463,2]
[322065063,1712738391652,1034.14826321,0.00017463,2]
[322065065,1712738411595,546.74028064,0.00017463,2]
[322065066,1712738445205,184.63,0.00015346,2]
[322065067,1712738453399,32415.36105548,0.00017463,2]
[322065069,1712738692097,10000.0,0.000225,10]
[322065070,1712738740158,-236.26412359,0.0001889,2]
[322065071,1712738740179,-195.41830468,0.00018891,2]
[322065072,1712738757335,350.58,0.00017185,2]
[322065073,1712738918924,184.63,0.00015102,2]
[322065074,1712738919442,11755.56655181,0.00017185,2]
[322065075,1712738943312,300.0,0.00012889,2]
[322065076,1712738968116,-504.36192946,0.00018691,2]
[322065077,1712738968136,-12579.17956838,0.00018692,2]
[322065078,1712738968156,-1000.0,0.00018791,2]
[322065079,1712738968177,-206.00107044,0.00018792,2]
[322065080,1712738968197,-206.34862353,0.00018792,2]
[322065081,1712738968217,-1775.0,0.00018793,2]
[322065082,1712738968237,-19898.69130724,0.00018793,2]
[322065083,1712738997438,10264.06001127,0.00017185,2]
[322065084,1712739003243,450.0,0.00012889,2]
[322065085,1712739008790,4044.55936361,0.00017185,2]
[322065097,1712739031602,-164.17733306,0.00018176,2]
[322065098,1712739031612,-207.35689785,0.00018176,2]
[322065099,1712739031623,-156.92614879,0.00018176,2]
[322065100,1712739031633,-395.12908288,0.00018177,2]
[322065101,1712739031644,-410.46511334,0.00018177,2]
[322065102,1712739031670,-1164.31723445,0.00018177,2]
[322065103,1712739031679,-999.99985555,0.00018177,2]
[322065104,1712739031689,-236.2586598,0.00018177,2]
[322065105,1712739031699,-113.10732784,0.00018178,2]
[322065106,1712739031976,-3638.82300736,0.00018178,2]
[322065107,1712739031986,-2175.08703921,0.00018178,2]
[322065108,1712739031995,-296.05923252,0.00018179,2]
[322065109,1712739032004,-407.61661465,0.00018179,2]
[322065110,1712739032014,-155.0,0.0001818,2]
[322065111,1712739032023,-522.93077474,0.0001818,2]
[322065112,1712739032032,-536.91468218,0.00018181,2]
[322065113,1712739032043,-155.44351897,0.00018182,2]
[322065114,1712739032052,-156.62444705,0.00018182,2]
[322065115,1712739032062,-169.8096135,0.00018182,2]
[322065116,1712739032081,-90.57146667,0.00018182,2]
[322065117,1712739032091,-210.05815043,0.00018508,2]
[322065118,1712739032103,-39.94184957,0.00018508,2]
[322065119,1712739032113,-462.44778672,0.0001853,2]
[322065120,1712739032124,-425.5574022,0.0001853,2]
[322065121,1712739032135,-327.01287504,0.0001853,2]
[322065122,1712739032147,-5214.96516474,0.0001853,2]
[322065123,1712739032158,-1048.93453551,0.0001853,2]
[322065124,1712739032197,-1957.94429199,0.0001853,2]
[322065169,1712739037600,-442.86238403,0.00018176,2]
[322065183,1712739037713,-239.89993517,0.00018176,2]
[322065185,1712739037723,-411.90357633,0.00018176,2]
[322065231,1712739038356,-139.05107175,0.00018176,2]
[322065234,1712739038366,-2350.74431941,0.00018176,2]
[322065236,1712739038377,-186.54,0.00018414,2]
[322065238,1712739038388,-14463.1379438,0.0001853,2]
[322065240,1712739038399,-1458.9,0.00018554,2]
[322065242,1712739038410,-84213.27601215,0.00018687,2]
[322065243,1712739038420,-8887.75956879,0.00018688,2]
[322065245,1712739038433,-1291.37360342,0.00018689,2]
[322065248,1712739038444,-736.72166263,0.00018689,2]
[322065250,1712739038455,-210.17511032,0.00018689,2]
[322065252,1712739038466,-155.0,0.00018689,2]
[322065254,1712739038476,-607.12726627,0.0001869,2]
[322065256,1712739038487,-4467.74366992,0.0001869,2]
[322065258,1712739038497,-1545.062,0.00018695,2]
[322065260,1712739038507,-699.3,0.00018738,2]
[322065262,1712739038517,-150.0,0.00018794,2]
[322065263,1712739038527,-373.01119864,0.00018898,2]
[322065265,1712739038537,-407.17,0.00018997,2]
[322065267,1712739038547,-11968.67,0.00019021,2]
[322065269,1712739038556,-500.0,0.00019062,2]
[322065271,1712739038566,-1678.82830467,0.00019098,2]
[322065274,1712739038576,-173.98,0.00019134,2]
[322065276,1712739038585,-150.0,0.00019205,2]
[322065277,1712739038594,-1000.0,0.00019287,2]
[322065280,1712739038603,-213.9639,0.00019408,2]
[322065281,1712739038612,-350.58,0.00019449,2]
[322065284,1712739038621,-499.99,0.00019508,2]
[322065285,1712739038630,-1000.0,0.000198,2]
[322065287,1712739038639,-251.08783605,0.0002,2]
[322065290,1712739038649,-1050.0,0.0002,2]